bitfinex/quotes_ETHUSD_20250905
["timestamp","ask_amount","ask_price","bid_price","bid_amount"]
[1757058251614,0.001,4401.4,4401.3,3.47015598]
[1757058251917,0.001,4401.4,4401.3,1.1981]
[1757058253022,0.001,4401.4,4401.3,0.7384]
[1757058254216,0.001,4401.4,4401.3,0.2982]
[1757058254518,0.001,4401.4,4401.3,0.7579]
[1757058254706,0.001,4401.4,4401.3,1.1981]
[1757058255220,0.001,4401.4,4401.3,0.7384]
[1757058256314,0.001,4401.4,4401.3,1.1981]
[1757058256529,0.001,4401.4,4401.3,0.7579]
[1757058256699,0.001,4401.4,4401.3,1.1981]
[1757058257018,0.001,4401.4,4401.3,3.47015598]
[1757058257224,0.001,4401.4,4401.3,1.1981]
[1757058257598,0.001,4401.4,4401.3,3.47015598]
[1757058257820,0.001,4401.4,4401.3,1.1981]
[1757058259202,0.001,4401.4,4401.3,3.47015598]
[1757058259498,0.001,4401.4,4401.3,1.32399557]
[1757058259822,0.001,4401.4,4401.3,0.2982]
[1757058259992,0.001,4401.4,4401.3,2.57025598]
[1757058260188,0.001,4401.4,4401.3,0.2982]
[1757058260824,0.001,4401.4,4401.3,0.7384]
[1757058261203,0.001,4401.4,4401.3,3.47015598]
[1757058261401,0.001,4401.4,4401.3,3.93077158]
[1757058261605,0.001,4401.4,4401.3,7.90577158]
[1757058265028,0.001,4401.4,4401.3,7.55875598]
[1757058265206,0.001,4401.4,4401.3,7.11855598]
[1757058265415,0.001,4401.4,4401.3,7.55875598]
[1757058267335,0.0002,4401.4,4401.3,7.55875598]
[1757058270116,0.0002,4401.4,4401.3,4.3868]
[1757058270710,0.0002,4401.4,4401.3,6.65885598]
[1757058271324,0.0002,4401.4,4401.3,4.3868]
[1757058272435,0.0002,4401.4,4401.3,4.0886]
[1757058272848,3.48955522,4401.4,4400.3,4.4122]
[1757058273046,3.01705522,4401.4,4400.3,4.4122]
[1757058273252,2.27205976,4401.3,4400.6,3.972]
[1757058273643,2.72880811,4401.4,4400.6,3.972]
[1757058274024,2.27206125,4401.3,4400.6,3.972]
[1757058274362,0.2882,4400.7,4400.6,3.972]
[1757058275144,0.2882,4400.7,4400.5,0.004]
[1757058277157,0.4566,4401.5,4400.6,0.2982]
[1757058277358,0.4566,4401.5,4400.6,4.2692]
[1757058277556,3.0002,4401.4,4400.6,6.54160369]
[1757058278427,0.0002,4401.4,4400.6,4.2692]
[1757058278628,0.0002,4401.4,4400.7,0.4402]
[1757058278827,0.0002,4401.4,4400.8,0.78431064]
[1757058279027,0.0002,4401.4,4400.9,2.27226249]
[1757058279465,0.0002,4401.4,4400.9,2.72576249]
[1757058279762,0.0002,4401.4,4401.0,0.4535]
[1757058279925,0.0002,4401.4,4401.0,2.72570219]
[1757058280121,0.0002,4401.4,4401.3,0.3144]
[1757058280548,0.0002,4401.4,4401.3,0.7679]
[1757058280743,0.0002,4401.4,4401.3,4.7389]
[1757058281172,0.0002,4401.4,4401.3,4.2854]
[1757058281595,0.0002,4401.4,4401.3,6.55745598]
[1757058281860,0.0002,4401.4,4401.3,7.86344123]
[1757058282030,0.0002,4401.4,4401.3,5.59138525]
[1757058282933,0.0002,4401.4,4401.3,5.13788525]
[1757058283139,0.0002,4401.4,4401.3,7.40994123]
[1757058283777,0.0002,4401.4,4401.3,7.97704123]
[1757058284260,0.0002,4401.4,4401.3,7.20914123]
[1757058284429,0.0002,4401.4,4401.3,4.93708525]
[1757058284627,0.0002,4401.4,4401.3,6.35665598]
[1757058284866,0.0002,4401.4,4401.3,6.67105598]
[1757058285059,0.3022,4401.4,4401.3,4.0846]
[1757058285265,3.03650436,4401.4,4401.3,0.1136]
[1757058285484,3.03650436,4401.4,4400.6,6.24236596]
[1757058285485,1.2181,4401.4,4400.6,6.24236596]
[1757058285664,0.7645,4401.4,4400.7,2.27235813]
[1757058285877,0.7645,4401.4,4400.6,3.97]
[1757058286041,3.49012532,4401.4,4400.6,3.97]
[1757058286553,1.2181,4401.4,4400.6,6.24239742]
[1757058286753,1.2181,4401.4,4400.6,3.97]
[1757058286976,0.9159,4401.3,4400.6,3.97]
[1757058287466,0.302,4400.7,4400.6,3.97]
[1757058287662,0.302,4400.7,4400.6,6.24241739]
[1757058289766,0.003,4402.7,4402.6,6.55578509]
[1757058289963,0.003,4402.7,4402.6,7.00928509]
[1757058290367,0.025,4402.8,4402.6,7.99201664]
[1757058290562,0.025,4402.8,4402.7,0.9431]
[1757058290887,0.003,4402.9,4402.8,2.27128191]
[1757058291198,0.003,4402.9,4402.8,3.52878191]
[1757058291383,1e-08,4402.9,4402.8,3.52878191]
[1757058291608,0.003,4403.2,4403.0,2.27117874]
[1757058291769,0.003,4403.2,4403.1,3.969]
[1757058291951,0.003,4403.2,4403.1,4.2834]
[1757058292359,0.4623,4404.1,4403.7,2.27081772]
[1757058292564,0.4623,4404.1,4403.7,7.91381772]
[1757058292889,0.352,4403.8,4403.7,7.91381772]
[1757058293457,0.05,4403.8,4403.7,8.22821772]
[1757058293662,0.05,4403.8,4403.7,9.77698036]
[1757058294562,0.05,4403.8,4403.7,10.26658036]
[1757058294963,0.0492,4403.8,4403.7,10.26658036]
[1757058295258,0.1128,4405.0,4404.6,2.27035372]
[1757058295472,0.1128,4405.0,4404.7,3.968]
[1757058295978,0.327,4404.8,4404.7,3.968]
[1757058296179,0.025,4404.8,4404.7,3.968]
[1757058296377,0.025,4404.8,4404.7,4.2824]
[1757058296604,0.327,4404.8,4404.7,3.968]
[1757058297202,0.7893,4404.8,4404.7,6.23830217]
[1757058297414,0.9021,4404.8,4404.7,6.23830217]
[1757058297573,0.327,4404.8,4404.7,6.23830217]
[1757058298474,1.2429,4404.8,4404.7,6.23830217]
[1757058298703,0.327,4404.8,4404.7,6.23830217]
[1757058300900,0.025,4404.8,4404.7,6.23830217]
[1757058301102,0.327,4404.8,4404.7,6.23830217]
[1757058301268,0.327,4404.8,4404.7,3.968]
[1757058301604,1.2429,4404.8,4404.7,3.968]
[1757058302001,0.7893,4404.8,4404.7,6.23830217]
[1757058302304,1.2429,4404.8,4404.7,3.967]
[1757058302490,1.36719,4404.8,4404.7,3.967]
[1757058302806,0.327,4404.8,4404.7,3.967]
[1757058303009,0.327,4404.8,4404.7,6.23730217]
[1757058303777,0.025,4404.8,4404.7,6.55170217]
[1757058303977,0.025,4404.8,4404.7,7.00520217]
[1757058304177,0.025,4404.8,4404.7,7.49480217]
[1757058304397,0.025,4404.8,4404.7,7.00520217]
[1757058304789,0.026,4404.8,4404.7,7.00520217]
[1757058305410,0.026,4404.8,4404.7,7.88354691]
[1757058305597,0.026,4404.8,4404.7,8.37314691]
[1757058309906,0.026,4404.8,4404.7,7.42804691]
[1757058310114,0.026,4404.8,4404.7,7.11364691]
[1757058310619,0.026,4404.8,4404.7,8.35334691]
[1757058312205,0.026,4404.8,4404.7,8.46614691]
[1757058313131,0.04687875,4406.1,4406.0,2.26963231]
[1757058313313,0.04687875,4406.1,4406.0,5.637]
[1757058313508,0.35357875,4406.1,4406.0,7.35663231]
[1757058313915,0.35357875,4406.1,4406.0,5.087]
[1757058314334,1.29967875,4406.1,4406.0,5.087]
[1757058314847,0.04687875,4406.1,4406.0,9.45608489]
[1757058315020,0.04687875,4406.1,4406.0,7.77933231]
[1757058315226,0.35357875,4406.1,4406.0,7.46943231]
[1757058315625,0.84257875,4406.1,4406.0,7.46943231]
[1757058315822,0.35357875,4406.1,4406.0,1.2358]
[1757058316035,1.29967875,4406.1,4406.0,5.087]
[1757058316350,0.84257875,4406.1,4406.0,5.087]
[1757058316534,1.29967875,4406.1,4406.0,5.087]
[1757058318227,0.84257875,4406.1,4406.0,5.087]
[1757058318910,0.35357875,4406.1,4406.0,5.087]
[1757058320037,0.04687875,4406.1,4406.0,5.3969]
[1757058320362,0.04687875,4406.1,4406.0,8.12263231]
[1757058320664,0.04687875,4406.1,4406.0,8.70913231]
[1757058322746,0.04607875,4406.1,4406.0,8.70913231]
[1757058324150,0.04607875,4406.1,4406.0,8.71313231]
[1757058324356,0.04707875,4406.1,4406.0,8.71313231]
[1757058326037,0.04707875,4406.1,4406.0,9.40592152]
[1757058328968,0.04707875,4406.1,4406.0,9.6116267]
[1757058330473,0.04707875,4406.1,4406.0,9.4988267]
[1757058330675,0.04707875,4406.1,4406.0,13.06444824]
[1757058332446,0.04707875,4406.1,4406.0,9.61156906]
[1757058332647,0.04707875,4406.1,4406.0,13.0643906]
[1757058333478,0.025,4406.8,4406.7,2.26927179]
[1757058333645,0.025,4406.8,4406.7,6.54771933]
[1757058333846,0.025,4406.8,4406.7,7.78741933]
[1757058335651,0.025,4406.8,4406.7,6.85761933]
[1757058335947,0.025,4406.8,4406.7,6.54771933]
[1757058336274,0.025,4406.8,4406.7,8.10022666]
[1757058336478,0.025,4406.8,4406.7,8.55632666]
[1757058337383,0.025,4406.8,4406.7,8.55619834]
[1757058337552,0.025,4406.8,4406.7,5.35712655]
[1757058337750,0.3317,4406.8,4406.7,6.4348083]
[1757058338554,0.025,4406.8,4406.7,6.4348083]
[1757058339884,0.3357,4406.8,4406.7,6.4348083]
[1757058340255,0.025,4406.8,4406.7,6.4348083]
[1757058342787,0.026,4406.8,4406.7,6.4348083]
[1757058343097,1.2374,4406.8,4406.7,4.16553651]
[1757058343306,1.36114,4406.8,4406.7,4.16553651]
[1757058343450,1.36114,4406.8,4406.7,3.96]
[1757058345607,6.63036029,4406.8,4406.7,3.96]
[1757058346589,10.08318183,4406.8,4406.7,3.96]
[1757058347713,5.26932328,4406.6,4406.5,3.956]
[1757058347874,6.5158616,4406.6,4406.5,3.956]
[1757058348071,7.7272616,4406.6,4406.5,3.956]
[1757058348708,8.40957523,4406.6,4406.1,0.0752]
[1757058348874,5.26947779,4406.3,4406.2,3.956]
[1757058349073,6.48087779,4406.3,4406.2,3.956]
[1757058349319,7.21694097,4406.3,4406.2,3.956]
[1757058349829,2.38232929,4406.2,4406.1,0.0752]
[1757058350211,6.59372929,4406.2,4406.1,0.0752]
[1757058350591,6.59292929,4406.2,4406.1,0.0752]
[1757058350920,7.89805847,4406.2,4406.1,0.0752]
[1757058351224,3.0,4406.1,4405.3,1.672]
[1757058351423,3.0,4406.1,4404.8,3.981]
[1757058351424,2.26983838,4405.6,4404.8,3.981]
[1757058351637,5.58053838,4405.6,4404.8,3.981]
[1757058351930,7.2824507,4405.6,4404.8,3.981]
[1757058353925,7.96497079,4405.6,4404.8,3.981]
[1757058354224,4.11191232,4405.6,4405.3,3.956]
[1757058354426,3.3107,4405.6,4405.3,3.956]
[1757058354726,6.48123838,4405.6,4405.3,3.956]
[1757058355130,9.93405992,4405.6,4405.3,3.956]
[1757058355625,9.93405992,4405.6,4404.8,3.981]
[1757058357411,10.72605992,4405.6,4404.8,3.981]
[1757058357611,13.88905992,4405.6,4404.8,0.025]
[1757058358213,15.57318241,4405.6,4404.8,0.025]
[1757058358537,11.61818241,4405.6,4404.8,0.025]
[1757058358738,5.16536087,4405.6,4404.8,0.025]
[1757058358906,6.48123838,4405.6,4404.8,0.025]
[1757058360224,10.43623838,4405.6,4404.8,0.025]
[1757058361032,10.43623838,4405.6,4405.0,0.004]
[1757058361214,3.3107,4405.6,4405.0,0.004]
[1757058361617,3.785,4405.6,4405.0,0.004]
[1757058361819,6.95553838,4405.6,4405.0,0.004]
[1757058362045,9.06556715,4405.6,4405.0,0.004]
[1757058363112,6.79572877,4405.6,4405.0,0.004]
[1757058363307,5.4777,4405.6,4405.0,0.004]
[1757058363513,7.74,4405.6,4405.0,0.004]
[1757058363735,7.739,4405.6,4405.0,0.004]
[1757058363912,3.785,4405.6,4405.0,0.004]
[1757058364108,0.785,4405.6,4405.0,0.004]
[1757058364334,3.954,4406.0,4405.5,0.7907]
[1757058364647,0.4743,4406.0,4405.6,0.9711]
[1757058364849,0.4743,4406.0,4405.9,2.58208383]
[1757058364850,0.14821875,4406.0,4405.9,2.58208383]
[1757058365050,0.26101875,4406.0,4405.9,3.55318383]
[1757058365347,0.1128,4406.2,4405.9,3.55318383]
[1757058365651,0.1128,4406.2,4406.1,2.2695808]
[1757058365824,0.1128,4406.2,4406.0,4.9251]
[1757058366016,0.1128,4406.2,4406.1,1.2835]
[1757058366217,0.1128,4406.2,4406.1,0.3124]
[1757058367354,0.4235,4406.2,4406.0,3.954]
[1757058367539,1.16999527,4406.1,4405.5,0.004]
[1757058367739,2.26983838,4405.6,4405.5,0.004]
[1757058367931,2.58053838,4405.6,4405.5,0.004]
[1757058368127,6.48123838,4405.6,4405.5,0.004]
[1757058368855,3.3107,4405.6,4405.5,0.004]
[1757058369027,3.0,4405.6,4405.5,0.004]
[1757058369453,3.3046,4405.6,4405.5,0.004]
[1757058369655,5.87443838,4405.6,4405.5,0.004]
[1757058369856,6.83333838,4405.6,4405.5,0.004]
[1757058370555,10.78633838,4405.6,4405.5,0.004]
[1757058371229,6.83333838,4405.6,4405.5,0.004]
[1757058371456,11.57833838,4405.6,4405.5,0.004]
[1757058372445,7.62533838,4405.6,4405.5,0.004]
[1757058372633,11.57833838,4405.6,4405.5,0.004]
[1757058372822,5.87443838,4405.6,4405.5,0.004]
[1757058373025,0.95180449,4406.1,4405.5,0.004]
[1757058373026,0.68250922,4406.1,4405.5,0.7703]
[1757058373357,0.17012085,4407.3,4405.5,0.7703]
[1757058373358,2.26913387,4407.0,4405.6,0.8934]
[1757058373538,0.63142085,4407.3,4405.6,3.16322455]
[1757058373721,0.7083245,4406.8,4405.6,0.4518]
[1757058373926,2.2693281,4406.6,4405.7,0.4416]
[1757058374161,0.7083245,4406.8,4405.7,0.4416]
[1757058374531,2.26927179,4406.7,4405.7,2.71138417]
[1757058374738,0.7083245,4406.8,4405.7,0.4416]
[1757058374739,2.26944583,4406.4,4405.7,0.4416]
[1757058374942,0.4976,4406.6,4405.5,0.004]
[1757058375271,2.26942628,4406.4,4405.5,0.004]
[1757058375445,2.26947779,4406.3,4405.5,0.004]
[1757058375769,3.0,4406.3,4405.5,0.004]
[1757058376086,3.4976,4406.3,4405.5,0.004]
[1757058376234,2.2695808,4406.1,4405.5,0.004]
[1757058376564,2.26958662,4406.1,4405.5,0.004]
[1757058376726,2.26968667,4405.9,4405.5,0.004]
[1757058377163,2.26968667,4405.9,4405.5,0.4456]
[1757058377325,3.0,4406.4,4405.5,0.004]
[1757058377531,2.26973565,4405.8,4405.5,0.004]
[1757058377858,5.57443838,4405.6,4405.5,0.004]
[1757058378227,7.32533838,4405.6,4405.5,0.004]
[1757058378430,7.32453838,4405.6,4405.5,0.004]
[1757058380050,0.68253096,4405.7,4405.5,0.004]
[1757058380248,0.68253096,4405.7,4405.5,0.3185]
[1757058380448,3.0,4405.9,4405.5,0.3185]
[1757058380678,0.92476606,4405.8,4405.5,0.3185]
[1757058380886,0.92476606,4405.8,4405.5,0.004]
[1757058381056,0.4558,4406.0,4405.7,0.3145]
[1757058381257,0.4558,4406.0,4405.8,0.8934]
[1757058381465,2.29522549,4406.8,4405.9,1.2079]
[1757058381791,0.026,4406.8,4405.9,3.47758331]
[1757058381968,0.1128,4406.2,4406.0,0.4416]
[1757058382153,0.1128,4406.2,4406.1,1.2079]
[1757058382359,0.1128,4406.2,4406.1,3.4774808]
[1757058383179,0.1128,4406.2,4406.1,1.2079]
[1757058383381,0.1128,4406.2,4406.1,3.4774808]
[1757058383579,0.1128,4406.2,4406.1,1.2079]
[1757058384279,0.1128,4406.2,4406.1,3.4774808]
[1757058384578,0.1128,4406.2,4406.1,0.7561]
[1757058384750,0.1128,4406.2,4406.1,1.74168409]
[1757058384950,0.026,4406.8,4406.1,1.74168409]
[1757058384951,0.026,4406.8,4406.7,2.26927179]
[1757058385177,0.026,4406.8,4406.7,7.94427179]
[1757058385377,0.026,4406.8,4406.7,9.15217179]
[1757058387281,0.026,4406.8,4406.7,0.7561]
[1757058387470,0.026,4406.8,4406.2,0.4518]
[1757058387673,0.026,4406.8,4406.3,2.93]
[1757058387854,0.026,4406.8,4406.3,3.3716]
[1757058388055,0.026,4406.8,4406.7,0.3145]
[1757058388499,0.026,4406.8,4406.7,0.7561]
[1757058389366,0.70812901,4406.8,4406.7,0.7561]
[1757058389571,0.026,4406.8,4406.7,1.2079]
[1757058390500,0.026,4406.8,4406.7,0.3145]
[1757058391101,0.026,4406.8,4406.7,0.7561]
[1757058393020,0.026,4406.8,4406.7,1.2079]
[1757058393888,0.025,4407.8,4406.7,1.55562173]
[1757058394082,0.025,4407.8,4406.8,4.8824]
[1757058394312,0.025,4407.8,4407.3,2.26891687]
[1757058394609,0.025,4407.8,4407.4,3.988]
[1757058394809,0.025,4407.8,4407.7,0.3145]
[1757058395107,0.025,4407.8,4406.9,1.672]
[1757058395322,0.025,4407.8,4407.7,0.3145]
[1757058395521,0.025,4407.8,4407.3,3.986]
[1757058395872,0.025,4407.8,4407.4,0.4416]
[1757058396378,0.025,4407.8,4407.7,0.3145]
[1757058396807,0.025,4407.8,4407.7,1.2079]
[1757058397009,0.025,4407.8,4407.7,3.59744694]
[1757058397178,0.025,4407.8,4407.7,1.2079]
[1757058397380,0.025,4407.8,4407.7,3.47665694]
[1757058398992,0.026,4407.8,4407.7,3.68161779]
[1757058399193,0.4885,4409.8,4407.7,3.68161779]
[1757058399194,0.05,4409.8,4408.7,2.26824233]
[1757058399396,0.025,4411.8,4408.7,2.26824233]
[1757058399397,0.025,4411.8,4410.9,2.26710267]
[1757058399587,1e-08,4411.8,4411.7,2.58319991]
[1757058399787,1e-08,4411.8,4411.7,6.57619991]
[1757058399986,1e-08,4411.8,4411.7,7.50579991]
[1757058400182,1e-08,4411.8,4411.7,1.2461]
[1757058400383,1e-08,4411.8,4411.7,9.96979991]
[1757058400597,1e-08,4411.8,4411.7,9.17779991]
[1757058400796,1e-08,4411.8,4411.7,9.96979991]
[1757058401018,1e-08,4411.8,4411.7,12.96979991]
[1757058401195,1e-08,4411.8,4411.7,16.63616307]
[1757058401404,1e-08,4412.8,4412.7,2.26618623]
[1757058401727,1e-08,4413.8,4413.7,2.26567279]
[1757058401888,1e-08,4413.8,4413.7,13.53282951]
[1757058402227,1e-08,4413.8,4413.7,9.5831]
[1757058402522,0.48898188,4415.0,4414.9,2.26505696]
[1757058402722,0.48898188,4415.0,4414.9,10.17480752]
[1757058403023,0.4385,4416.3,4414.9,2.80741861]
[1757058403226,0.025,4416.8,4413.8,0.20225308]
[1757058403227,0.9007,4415.7,4413.8,0.20225308]
[1757058403390,0.9007,4415.7,4413.9,4.5415557]
[1757058403391,3.0,4415.5,4413.9,4.5415557]
[1757058403706,0.82857,4415.4,4413.9,4.043]
[1757058403907,2.26514158,4414.8,4413.9,4.043]
[1757058404110,0.85227,4415.4,4413.9,4.043]
[1757058404111,2.26521089,4414.6,4413.9,4.043]
[1757058404303,0.4385,4414.8,4413.0,1.671]
[1757058404513,0.4385,4414.7,4413.1,4.5289]
[1757058404711,0.4385,4414.6,4413.1,4.5289]
[1757058404897,0.4622,4415.0,4413.1,4.5289]
[1757058404898,0.39007,4415.4,4413.1,4.67299]
[1757058405108,0.4635,4415.8,4413.3,0.792]
[1757058405307,0.025,4415.8,4413.5,3.0]
[1757058405511,0.025,4415.8,4415.7,0.1128]
[1757058405797,0.025,4415.8,4415.7,4.1918]
[1757058406332,0.0242,4416.8,4415.7,4.7862]
[1757058406530,0.0242,4416.8,4415.7,0.4759]
[1757058406835,0.0242,4416.8,4415.4,1.671]
[1757058406836,0.0242,4416.8,4415.8,4.102]
[1757058407128,2.26413385,4416.7,4415.8,4.102]
[1757058407330,2.26431108,4416.4,4415.6,4.108]
[1757058407521,2.26440433,4416.2,4415.6,4.108]
[1757058407721,2.49089304,4416.1,4415.6,4.108]
[1757058407937,2.49089304,4416.1,4415.2,4.107]
[1757058407938,0.4385,4416.0,4415.2,4.107]
[1757058408096,2.26483431,4415.4,4414.8,1.67]
[1757058408296,2.72671915,4416.0,4414.3,4.106]
[1757058408495,0.4385,4416.3,4414.4,4.60455313]
[1757058408816,0.9007,4416.2,4414.4,4.5819]
[1757058409018,5.26449275,4416.0,4414.4,4.106]
[1757058409215,2.26459531,4415.8,4414.1,1.67]
[1757058409413,2.26510623,4414.9,4414.1,1.67]
[1757058409609,5.26459531,4415.8,4414.1,1.67]
[1757058409811,2.70347879,4415.1,4414.1,1.67]
[1757058410032,2.35127953,4415.7,4414.1,1.67]
[1757058410196,0.4385,4415.7,4414.5,2.26524538]
[1757058410402,0.9007,4416.3,4414.6,4.122]
[1757058410597,2.26456524,4415.9,4414.6,4.122]
[1757058410798,3.0242,4416.8,4414.6,4.122]
[1757058410997,0.0242,4416.8,4415.8,2.26458359]
[1757058411230,0.2726707,4416.7,4415.8,2.26458359]
[1757058411413,0.2726707,4416.7,4415.7,4.143]
[1757058411611,0.0242,4416.8,4415.7,4.143]
[1757058412335,0.0242,4416.8,4416.6,2.26415402]
[1757058412513,0.4627,4416.8,4415.8,2.26457864]
[1757058412719,0.4627,4416.8,4415.5,2.26474917]
[1757058412720,0.0242,4416.8,4416.1,2.26441812]
[1757058413038,0.0242,4416.8,4416.1,4.138]
[1757058413399,0.0242,4416.8,4416.2,1.67]
[1757058413711,0.0242,4416.8,4416.6,2.26416785]
[1757058413911,0.0242,4416.8,4416.7,4.138]
[1757058414212,0.0242,4416.8,4416.7,4.8452]
[1757058414398,1e-08,4416.8,4416.7,5.6372]
[1757058415838,1e-08,4416.8,4416.7,0.4759]
[1757058416012,1e-08,4416.8,4416.7,4.6189]
[1757058416333,1e-08,4416.8,4416.7,4.963]
[1757058416533,1e-08,4416.8,4416.7,4.7317]
[1757058416739,1e-08,4416.8,4416.7,4.2558]
[1757058416937,1e-08,4416.8,4416.7,0.1128]
[1757058417139,1e-08,4416.8,4416.7,6.6024]
[1757058417637,1e-08,4416.8,4416.7,7.71547633]
[1757058417843,1e-08,4416.8,4416.7,6.6024]
[1757058418042,1e-08,4416.8,4416.7,6.8337]
[1757058418548,1e-08,4416.8,4416.5,2.26419527]
[1757058418708,1e-08,4416.8,4416.2,4.143]
[1757058419149,1e-08,4416.8,4415.0,2.26499013]
[1757058419150,3.792,4416.6,4414.8,0.025]
[1757058419313,1.77987,4416.5,4414.9,0.02265056]
[1757058419536,2.26441222,4416.2,4414.8,0.025]
[1757058419739,3.0,4416.1,4414.8,0.025]
[1757058419936,0.9007,4416.1,4414.8,0.025]
[1757058420379,2.26501581,4415.0,4414.8,0.025]
[1757058420669,2.26501581,4415.0,4413.8,0.025]
[1757058420670,0.75299453,4414.9,4413.8,0.025]
[1757058420836,2.26512174,4414.8,4413.8,0.025]
[1757058421036,2.26517152,4414.7,4413.9,4.193]
[1757058421261,0.9007,4414.9,4413.9,4.193]
[1757058421564,0.9007,4414.8,4413.8,0.025]
[1757058421766,2.26554134,4414.0,4413.8,0.025]
[1757058421941,5.49209547,4414.0,4413.8,0.025]
[1757058422142,0.4385,4413.9,4413.8,0.025]
[1757058422564,0.4385,4414.5,4413.8,0.025]
[1757058422874,0.4385,4415.7,4414.8,0.025]
[1757058423186,2.70315766,4415.7,4414.8,0.025]
[1757058423579,0.4385,4415.7,4414.8,0.025]
[1757058423939,2.26477595,4415.5,4414.8,0.025]
[1757058424140,2.26495845,4415.1,4414.8,0.025]
[1757058424335,2.26503927,4415.0,4414.8,0.025]
[1757058424552,0.9007,4415.0,4413.8,0.025]
[1757058424743,3.0,4414.9,4413.8,0.025]
[1757058424957,0.39007,4414.8,4413.8,0.025]
[1757058425252,2.26553372,4414.0,4413.8,0.025]
[1757058425446,0.9007,4413.9,4413.8,0.025]
[1757058425684,3.9007,4413.9,4413.8,0.025]
[1757058426274,0.9007,4413.9,4413.8,0.025]
[1757058426471,0.4385,4413.9,4413.8,0.025]
[1757058426684,1.669,4414.4,4413.8,0.025]
[1757058426848,0.4385,4414.5,4413.8,0.025]
[1757058427056,0.1128,4414.1,4413.8,0.025]
[1757058427281,0.9007,4414.0,4413.8,0.025]
[1757058427581,3.0,4413.9,4413.8,0.025]
[1757058427782,5.26552509,4414.0,4413.8,0.025]
[1757058427951,0.9007,4413.9,4413.8,0.025]
[1757058428283,3.16627013,4413.9,4413.8,0.025]
[1757058429480,3.16627013,4413.9,4413.8,1e-08]
[1757058429687,6.95827013,4413.9,4413.8,1e-08]
[1757058430694,11.17127013,4413.9,4413.8,1e-08]
[1757058430886,12.29307122,4413.9,4413.8,1e-08]
[1757058431378,12.29207122,4413.9,4413.8,1e-08]
[1757058431549,8.08007122,4413.9,4413.8,1e-08]
[1757058431753,12.29007122,4413.9,4413.8,1e-08]
[1757058432768,10.37527013,4413.9,4413.8,1e-08]
[1757058432973,6.90807013,4413.9,4413.8,1e-08]
[1757058433470,5.70407013,4413.9,4413.8,1e-08]
[1757058433680,9.46857013,4413.9,4413.8,1e-08]
[1757058434213,5.26477013,4413.9,4413.8,1e-08]
[1757058434992,0.1128,4414.1,4413.8,1e-08]
[1757058435597,2.37828094,4414.1,4413.8,1e-08]
[1757058435778,0.1128,4414.1,4413.8,1e-08]
[1757058435974,2.26553827,4414.0,4413.8,1e-08]
[1757058436174,2.37827469,4414.1,4413.8,1e-08]
[1757058436404,0.4545,4413.9,4413.8,1e-08]
[1757058436713,2.72007013,4413.9,4413.8,1e-08]
[1757058436918,3.01707013,4413.9,4413.8,1e-08]
[1757058437206,11.20632506,4413.9,4413.8,0.00400001]
[1757058437405,11.99832506,4413.9,4413.8,0.00400001]
[1757058437974,11.99832506,4413.9,4413.8,1e-08]
[1757058439911,7.80432506,4413.9,4413.8,1e-08]
[1757058440082,11.99232506,4413.9,4413.8,1e-08]
[1757058440808,0.792,4413.7,4413.1,1e-08]
[1757058440988,3.792,4413.0,4412.8,1e-08]
[1757058441189,2.26659715,4411.9,4411.8,0.025]
[1757058441390,11.12259715,4411.9,4411.8,0.025]
[1757058441589,8.21635208,4411.9,4411.8,0.025]
[1757058441803,0.467,4412.2,4411.8,0.025]
[1757058441804,2.26649436,4412.2,4411.8,0.025]
[1757058441988,2.26645043,4412.2,4411.8,0.7972]
[1757058442198,3.0,4412.3,4411.8,0.7972]
[1757058442414,3.0,4412.3,4411.8,0.025]
[1757058442587,4.19,4412.2,4411.8,0.025]
[1757058442786,6.4565147,4412.1,4411.8,0.025]
[1757058443028,1.67,4412.7,4411.8,0.4942]
[1757058443346,4.189,4412.6,4411.8,0.025]
[1757058444084,1.67,4412.7,4411.8,0.025]
[1757058444295,4.185,4412.6,4411.8,0.025]
[1757058444602,2.72029301,4413.5,4411.9,0.4692]
[1757058444925,3.0,4412.9,4411.8,0.025]
[1757058445230,2.26623759,4412.6,4411.8,0.025]
[1757058445388,2.26639538,4412.3,4411.8,0.025]
[1757058445588,2.26644908,4412.2,4411.8,0.025]
[1757058445883,2.26655247,4412.0,4411.8,0.025]
[1757058446085,0.4545,4412.1,4411.8,0.025]
[1757058446618,2.26659715,4411.9,4411.8,0.025]
[1757058446988,3.935927,4413.3,4411.8,0.328]
[1757058446989,0.4545,4413.0,4411.8,0.328]
[1757058447315,0.1128,4412.1,4411.8,0.328]
[1757058447820,2.26479028,4415.5,4411.9,0.95489654]
[1757058447821,0.4545,4413.4,4411.9,0.95489654]
[1757058448020,2.26592948,4413.2,4412.1,2.2664798]
[1757058448323,2.26627818,4412.6,4411.8,0.025]
[1757058448616,4.19,4412.6,4411.9,0.20478263]
[1757058448910,2.26649441,4412.1,4412.0,0.20478263]
[1757058449128,2.26659715,4411.9,4411.8,0.025]
[1757058449481,3.0,4412.5,4411.8,0.025]
[1757058449685,2.26654578,4412.0,4411.9,0.20499121]
[1757058449915,4.188,4412.4,4411.8,0.025]
[1757058450121,2.26645231,4412.2,4411.8,0.025]
[1757058450414,4.69415,4412.4,4411.8,0.025]
[1757058450719,2.26649482,4412.1,4411.8,0.025]
[1757058450891,2.26659715,4411.9,4411.8,0.025]
[1757058451092,5.56359715,4411.9,4411.8,0.025]